[Event "Estonian Women's Chess Championship 2022"]
[Site "Tallinn, Paul Keres Chess House, Estonia"]
[Date "2022.12.14"]
[Round "5.1"]
[White "Levchenko, Marina"]
[Black "Ivanova, Lidia"]
[Result "0-1"]
[TimeControl "90 minutes for first 40 moves and 15 min. for the rest of the game with 30 sec. increment from move 1"]
[WhiteFideId "4508548"]
[BlackFideId "4506480"]
[WhiteElo "1625"]
[BlackElo "1482"]

1. d4 {

[%clk 01:30:58]

} {

[%emt 00:00:02]

} Nf6 {

[%clk 01:30:50]

} {

[%emt 00:00:11]

} 2. c4 {

[%clk 01:31:20]

} {

[%emt 00:00:08]

} g6 {

[%clk 01:31:14]

} {

[%emt 00:00:05]

} 3. Nc3 {

[%clk 01:31:35]

} {

[%emt 00:00:16]

} d5 {

[%clk 01:31:37]

} {

[%emt 00:00:07]

} 4. cxd5 {

[%clk 01:31:45]

} {

[%emt 00:00:21]

} Nxd5 {

[%clk 01:32:01]

} {

[%emt 00:00:06]

} 5. e4 {

[%clk 01:31:47]

} {

[%emt 00:00:27]

} Nxc3 {

[%clk 01:32:25]

} {

[%emt 00:00:06]

} 6. bxc3 {

[%clk 01:32:14]

} {

[%emt 00:00:03]

} Bg7 {

[%clk 01:32:48]

} {

[%emt 00:00:06]

} 7. Bc4 {

[%clk 01:32:21]

} {

[%emt 00:00:23]

} c5 {

[%clk 01:33:11]

} {

[%emt 00:00:08]

} 8. Ne2 {

[%clk 01:31:48]

} {

[%emt 00:01:02]

} O-O {

[%clk 01:33:30]

} {

[%emt 00:00:11]

} 9. O-O {

[%clk 01:31:31]

} {

[%emt 00:00:47]

} Qa5 {

[%clk 01:33:45]

} {

[%emt 00:00:15]

} 10. Be3 {

[%clk 01:27:20]

} {

[%emt 00:04:39]

} Nc6 {

[%clk 01:33:32]

} {

[%emt 00:00:45]

} 11. Rc1 {

[%clk 01:17:29]

} {

[%emt 00:10:22]

} e6 {

[%clk 01:23:39]

} {

[%emt 00:10:22]

} 12. f4 {

[%clk 01:14:43]

} {

[%emt 00:03:16]

} b5 {

[%clk 01:22:31]

} {

[%emt 00:01:38]

} 13. Bb3 {

[%clk 01:12:42]

} {

[%emt 00:02:32]

} c4 {

[%clk 01:22:35]

} {

[%emt 00:00:26]

} 14. Bc2 {

[%clk 01:12:55]

} {

[%emt 00:00:17]

} Rb8 {

[%clk 01:15:42]

} {

[%emt 00:07:23]

} 15. f5 {

[%clk 01:03:50]

} {

[%emt 00:09:36]

} exf5 {

[%clk 01:10:29]

} {

[%emt 00:05:42]

} 16. exf5 {

[%clk 01:04:01]

} {

[%emt 00:00:20]

} Qd8 {

[%clk 01:06:57]

} {

[%emt 00:04:01]

} 17. Qd2 {

[%clk 00:57:10]

} {

[%emt 00:07:21]

} Re8 {

[%clk 01:06:59]

} {

[%emt 00:00:28]

} 18. Ng3 {

[%clk 00:51:57]

} {

[%emt 00:05:43]

} b4 {

[%clk 01:01:51]

} {

[%emt 00:05:38]

} 19. Qf2 {

[%clk 00:49:49]

} {

[%emt 00:02:38]

} bxc3 {

[%clk 00:46:40]

} {

[%emt 00:15:41]

} 20. f6 {

[%clk 00:35:42]

} {

[%emt 00:14:37]

} Rxe3 {

[%clk 00:29:31]

} {

[%emt 00:17:39]

} 21. fxg7 {

[%clk 00:31:44]

} {

[%emt 00:04:28]

} Re7 {

[%clk 00:27:06]

} {

[%emt 00:02:55]

} 22. Ne2 {

[%clk 00:27:20]

} {

[%emt 00:04:54]

} Bg4 {

[%clk 00:24:17]

} {

[%emt 00:03:18]

} 23. Rce1 {

[%clk 00:16:24]

} {

[%emt 00:11:27]

} Rbb7 {

[%clk 00:23:13]

} {

[%emt 00:01:33]

} 24. Nxc3 {

[%clk 00:05:06]

} {

[%emt 00:11:48]

} Qxd4 {

[%clk 00:18:26]

} {

[%emt 00:05:17]

} 25. Qxd4 {

[%clk 00:03:40]

} {

[%emt 00:01:56]

} Nxd4 {

[%clk 00:18:40]

} {

[%emt 00:00:16]

} 26. Be4 {

[%clk 00:03:17]

} {

[%emt 00:00:54]

} Ne2+ {

[%clk 00:06:52]

} {

[%emt 00:12:18]

} 27. Nxe2 {

[%clk 00:01:46]

} {

[%emt 00:02:01]

} Rxe4 {

[%clk 00:07:05]

} {

[%emt 00:00:16]

} 28. Nc3 {

[%clk 00:01:55]

} {

[%emt 00:00:21]

} Rxe1 {

[%clk 00:07:11]

} {

[%emt 00:00:25]

} 29. Rxe1 {

[%clk 00:02:21]

} {

[%emt 00:00:04]

} Be6 {

[%clk 00:07:25]

} {

[%emt 00:00:16]

} 30. Re2 {

[%clk 00:02:30]

} {

[%emt 00:00:21]

} Kxg7 {

[%clk 00:07:37]

} {

[%emt 00:00:18]

} 31. Kf2 {

[%clk 00:02:42]

} {

[%emt 00:00:19]

} h5 {

[%clk 00:07:16]

} {

[%emt 00:00:50]

} 32. h3 {

[%clk 00:03:01]

} {

[%emt 00:00:11]

} Rd7 {

[%clk 00:06:42]

} {

[%emt 00:01:04]

} 33. Ne4 {

[%clk 00:02:43]

} {

[%emt 00:00:49]

} Bf5 {

[%clk 00:05:13]

} {

[%emt 00:01:59]

} 34. Nc3 {

[%clk 00:02:28]

} {

[%emt 00:00:46]

} Rd3 {

[%clk 00:04:39]

} {

[%emt 00:01:04]

} 35. Re3 {

[%clk 00:02:37]

} {

[%emt 00:00:22]

} Rd2+ {

[%clk 00:02:53]

} {

[%emt 00:02:15]

} 36. Re2 {

[%clk 00:01:20]

} {

[%emt 00:01:46]

} Rxe2+ {

[%clk 00:03:12]

} {

[%emt 00:00:12]

} 37. Kxe2 {

[%clk 00:01:35]

} {

[%emt 00:00:15]

} Bd3+ {

[%clk 00:03:26]

} {

[%emt 00:00:15]

} 38. Ke3 {

[%clk 00:01:38]

} {

[%emt 00:00:28]

} g5 {

[%clk 00:02:48]

} {

[%emt 00:01:08]

} 39. g3 {

[%clk 00:01:24]

} {

[%emt 00:00:44]

} h4 {

[%clk 00:02:07]

} {

[%emt 00:01:11]

} 40. gxh4 {

[%clk 00:16:13]

} {

[%emt 00:00:42]

} gxh4 {

[%clk 00:17:35]

} {

[%emt 00:00:02]

} 41. Kf4 {

[%clk 00:15:01]

} {

[%emt 00:01:42]

} a6 {

[%clk 00:13:46]

} {

[%emt 00:04:19]

} 42. Kg5 {

[%clk 00:14:58]

} {

[%emt 00:00:33]

} Bf1 {

[%clk 00:13:41]

} {

[%emt 00:00:35]

} 43. Ne4 {

[%clk 00:13:00]

} {

[%emt 00:02:28]

} Bxh3 {

[%clk 00:12:27]

} {

[%emt 00:01:44]

} 44. Kxh4 {

[%clk 00:13:09]

} {

[%emt 00:00:21]

} Bf1 {

[%clk 00:12:31]

} {

[%emt 00:00:23]

} 45. Kg5 {

[%clk 00:13:12]

} {

[%emt 00:00:31]

} Be2 {

[%clk 00:11:25]

} {

[%emt 00:01:36]

} 46. Nc3 {

[%clk 00:12:39]

} {

[%emt 00:01:03]

} Bd3 {

[%clk 00:11:38]

} {

[%emt 00:00:16]

} 47. Nd5 {

[%clk 00:12:50]

} {

[%emt 00:00:19]

} Bb1 {

[%clk 00:11:40]

} {

[%emt 00:00:26]

} 48. Nc3 {

[%clk 00:12:28]

} {

[%emt 00:00:55]

} f6+ {

[%clk 00:11:49]

} {

[%emt 00:00:20]

} 49. Kf4 {

[%clk 00:12:47]

} {

[%emt 00:00:12]

} Bd3 {

[%clk 00:11:37]

} {

[%emt 00:00:42]

} 50. Nd5 {

[%clk 00:12:57]

} {

[%emt 00:00:20]

} Kf7 {

[%clk 00:09:33]

} {

[%emt 00:02:33]

} 51. Ke3 {

[%clk 00:13:08]

} {

[%emt 00:00:19]

} a5 {

[%clk 00:07:49]

} {

[%emt 00:02:14]

} 52. Kd4 {

[%clk 00:12:31]

} {

[%emt 00:01:08]

} f5 {

[%clk 00:05:41]

} {

[%emt 00:02:38]

} 53. Ke5 {

[%clk 00:11:57]

} {

[%emt 00:01:03]

} Kg6 {

[%clk 00:05:03]

} {

[%emt 00:01:08]

} 54. Nf4+ {

[%clk 00:12:03]

} {

[%emt 00:00:25]

} Kg5 {

[%clk 00:05:17]

} {

[%emt 00:00:16]

} 55. Nd5 {

[%clk 00:12:01]

} {

[%emt 00:00:31]

} Kg4 {

[%clk 00:04:29]

} {

[%emt 00:01:18]

} 56. Nf4 {

[%clk 00:11:54]

} {

[%emt 00:00:37]

} Bb1 {

[%clk 00:04:22]

} {

[%emt 00:00:36]

} 57. a3 {

[%clk 00:12:00]

} {

[%emt 00:00:25]

} c3 {

[%clk 00:04:05]

} {

[%emt 00:00:47]

} 58. a4 {

[%clk 00:12:12]

} {

[%emt 00:00:18]

} c2 {

[%clk 00:04:00]

} {

[%emt 00:00:34]

} 59. Ne2 {

[%clk 00:11:40]

} {

[%emt 00:01:02]

} f4 {

[%clk 00:03:40]

} {

[%emt 00:00:50]

} 0-1

[Event "Estonian Women's Chess Championship 2022"]
[Site "Tallinn, Paul Keres Chess House, Estonia"]
[Date "2022.12.14"]
[Round "5.2"]
[White "Haapsal, Maria Ioanna"]
[Black "Blokhin, Sofia"]
[Result "0-1"]
[TimeControl "90 minutes for first 40 moves and 15 min. for the rest of the game with 30 sec. increment from move 1"]
[BlackTitle "WFM"]
[WhiteFideId "4512286"]
[BlackFideId "4508190"]
[WhiteElo "1386"]
[BlackElo "2065"]

1. e4 {

[%clk 01:30:56]

} {

[%emt 00:00:03]

} c5 {

[%clk 01:30:54]

} {

[%emt 00:00:06]

} 2. Nf3 {

[%clk 01:31:17]

} {

[%emt 00:00:10]

} e6 {

[%clk 01:31:14]

} {

[%emt 00:00:10]

} 3. d4 {

[%clk 01:31:40]

} {

[%emt 00:00:06]

} cxd4 {

[%clk 01:31:38]

} {

[%emt 00:00:06]

} 4. Nxd4 {

[%clk 01:32:04]

} {

[%emt 00:00:06]

} a6 {

[%clk 01:32:03]

} {

[%emt 00:00:06]

} 5. c4 {

[%clk 01:32:23]

} {

[%emt 00:00:11]

} Nf6 {

[%clk 01:32:24]

} {

[%emt 00:00:09]

} 6. Nc3 {

[%clk 01:32:40]

} {

[%emt 00:00:13]

} Bb4 {

[%clk 01:32:44]

} {

[%emt 00:00:10]

} 7. Qd3 {

[%clk 01:32:36]

} {

[%emt 00:00:34]

} Qc7 {

[%clk 01:32:15]

} {

[%emt 00:00:58]

} 8. Be2 {

[%clk 01:31:25]

} {

[%emt 00:01:40]

} Nc6 {

[%clk 01:31:32]

} {

[%emt 00:01:14]

} 9. Nxc6 {

[%clk 01:25:43]

} {

[%emt 00:06:13]

} dxc6 {

[%clk 01:31:46]

} {

[%emt 00:00:16]

} 10. Be3 {

[%clk 01:23:28]

} {

[%emt 00:02:43]

} e5 {

[%clk 01:30:11]

} {

[%emt 00:02:05]

} 11. O-O {

[%clk 01:22:01]

} {

[%emt 00:01:57]

} Be6 {

[%clk 01:20:35]

} {

[%emt 00:10:06]

} 12. f3 {

[%clk 01:16:55]

} {

[%emt 00:05:36]

} O-O {

[%clk 01:18:19]

} {

[%emt 00:02:46]

} 13. Rad1 {

[%clk 01:13:39]

} {

[%emt 00:03:46]

} b5 {

[%clk 01:16:26]

} {

[%emt 00:02:23]

} 14. cxb5 {

[%clk 01:12:54]

} {

[%emt 00:01:16]

} axb5 {

[%clk 01:16:43]

} {

[%emt 00:00:12]

} 15. a3 {

[%clk 01:12:41]

} {

[%emt 00:00:44]

} Be7 {

[%clk 01:14:05]

} {

[%emt 00:03:08]

} 16. Qc2 {

[%clk 01:10:14]

} {

[%emt 00:02:56]

} Qb7 {

[%clk 01:12:31]

} {

[%emt 00:02:04]

} 17. Kh1 {

[%clk 01:03:15]

} {

[%emt 00:07:28]

} Nh5 {

[%clk 01:08:43]

} {

[%emt 00:04:19]

} 18. Rfe1 {

[%clk 01:00:54]

} {

[%emt 00:02:52]

} Rfb8 {

[%clk 01:07:17]

} {

[%emt 00:01:55]

} 19. Rd2 {

[%clk 00:54:24]

} {

[%emt 00:07:00]

} b4 {

[%clk 01:02:35]

} {

[%emt 00:05:11]

} 20. axb4 {

[%clk 00:54:01]

} {

[%emt 00:00:52]

} Qxb4 {

[%clk 01:02:45]

} {

[%emt 00:00:22]

} 21. Bd1 {

[%clk 00:52:09]

} {

[%emt 00:02:21]

} Ra1 {

[%clk 01:01:39]

} {

[%emt 00:01:36]

} 22. Rg1 {

[%clk 00:44:00]

} {

[%emt 00:08:37]

} Nf4 {

[%clk 01:00:23]

} {

[%emt 00:01:47]

} 23. Ne2 {

[%clk 00:40:46]

} {

[%emt 00:03:43]

} Bg5 {

[%clk 00:50:14]

} {

[%emt 00:10:41]

} 24. Nxf4 {

[%clk 00:38:36]

} {

[%emt 00:02:40]

} Bxf4 {

[%clk 00:46:27]

} {

[%emt 00:04:17]

} 25. Bxf4 {

[%clk 00:35:09]

} {

[%emt 00:03:57]

} exf4 {

[%clk 00:46:49]

} {

[%emt 00:00:09]

} 26. Be2 {

[%clk 00:32:48]

} {

[%emt 00:02:50]

} Rxg1+ {

[%clk 00:44:18]

} {

[%emt 00:03:02]

} 27. Kxg1 {

[%clk 00:33:17]

} {

[%emt 00:00:02]

} Qb6+ {

[%clk 00:44:32]

} {

[%emt 00:00:16]

} 28. Kh1 {

[%clk 00:33:20]

} {

[%emt 00:00:26]

} Bb3 {

[%clk 00:38:31]

} {

[%emt 00:06:32]

} 29. Qc1 {

[%clk 00:27:42]

} {

[%emt 00:06:08]

} Qe3 {

[%clk 00:33:51]

} {

[%emt 00:05:10]

} 30. g3 {

[%clk 00:23:45]

} {

[%emt 00:04:27]

} h6 {

[%clk 00:18:14]

} {

[%emt 00:16:07]

} 31. Qc3 {

[%clk 00:15:50]

} {

[%emt 00:08:25]

} Qf2 {

[%clk 00:12:02]

} {

[%emt 00:06:42]

} 32. Ba6 {

[%clk 00:05:33]

} {

[%emt 00:10:47]

} Qb6 {

[%clk 00:10:30]

} {

[%emt 00:02:01]

} 33. Bc4 {

[%clk 00:03:37]

} {

[%emt 00:02:27]

} Bxc4 {

[%clk 00:07:48]

} {

[%emt 00:03:12]

} 34. Qxc4 {

[%clk 00:04:06]

} Ra8 {

[%clk 00:07:11]

} {

[%emt 00:01:07]

} 35. Qd4 {

[%clk 00:02:28]

} {

[%emt 00:02:09]

} Qb5 {

[%clk 00:05:55]

} {

[%emt 00:01:45]

} 36. Kg2 {

[%clk 00:01:45]

} {

[%emt 00:01:14]

} fxg3 {

[%clk 00:05:33]

} {

[%emt 00:00:52]

} 37. hxg3 {

[%clk 00:02:08]

} {

[%emt 00:00:06]

} Qg5 {

[%clk 00:04:30]

} {

[%emt 00:01:32]

} 38. f4 {

[%clk 00:01:35]

} {

[%emt 00:01:04]

} Qh5 {

[%clk 00:04:14]

} {

[%emt 00:00:45]

} 39. b3 {

[%clk 00:00:58]

} {

[%emt 00:01:08]

} Qg4 {

[%clk 00:03:22]

} {

[%emt 00:01:20]

} 40. Qd7 {

[%clk 00:15:44]

} {

[%emt 00:00:45]

} Qg6 {

[%clk 00:17:52]

} {

[%emt 00:01:00]

} 41. Qd4 {

[%clk 00:13:51]

} {

[%emt 00:02:24]

} h5 {

[%clk 00:15:59]

} {

[%emt 00:02:23]

} 42. Kh2 {

[%clk 00:09:51]

} {

[%emt 00:04:30]

} Re8 {

[%clk 00:14:22]

} {

[%emt 00:02:06]

} 43. e5 {

[%clk 00:09:08]

} {

[%emt 00:01:13]

} Ra8 {

[%clk 00:10:52]

} {

[%emt 00:03:59]

} 44. Qd6 {

[%clk 00:07:58]

} {

[%emt 00:01:41]

} Qe4 {

[%clk 00:10:30]

} {

[%emt 00:00:52]

} 45. Qd3 {

[%clk 00:08:13]

} {

[%emt 00:00:13]

} Qe1 {

[%clk 00:09:52]

} {

[%emt 00:01:10]

} 46. Qe2 {

[%clk 00:07:45]

} {

[%emt 00:00:58]

} Qc1 {

[%clk 00:09:33]

} {

[%emt 00:00:50]

} 47. Rc2 {

[%clk 00:07:16]

} {

[%emt 00:01:00]

} Qb1 {

[%clk 00:09:16]

} {

[%emt 00:00:47]

} 48. Rb2 {

[%clk 00:06:47]

} {

[%emt 00:00:59]

} Qf5 {

[%clk 00:08:43]

} {

[%emt 00:01:02]

} 49. Qc2 {

[%clk 00:06:28]

} {

[%emt 00:00:49]

} Qe6 {

[%clk 00:08:13]

} {

[%emt 00:01:00]

} 50. Qc4 {

[%clk 00:05:26]

} {

[%emt 00:01:32]

} Qd7 {

[%clk 00:06:58]

} {

[%emt 00:01:45]

} 51. Rc2 {

[%clk 00:03:39]

} {

[%emt 00:02:17]

} Rc8 {

[%clk 00:05:54]

} {

[%emt 00:01:34]

} 52. Qc5 {

[%clk 00:03:11]

} {

[%emt 00:00:58]

} Qd3 {

[%clk 00:04:58]

} {

[%emt 00:01:25]

} 53. Qc3 {

[%clk 00:02:46]

} {

[%emt 00:00:54]

} Qf5 {

[%clk 00:04:28]

} {

[%emt 00:01:02]

} 54. Qd2 {

[%clk 00:00:55]

} {

[%emt 00:02:21]

} Kh7 {

[%clk 00:03:45]

} {

[%emt 00:01:12]

} 55. Rc3 {

[%clk 00:00:45]

} {

[%emt 00:00:41]

} g6 {

[%clk 00:03:24]

} {

[%emt 00:00:51]

} 56. Qd3 {

[%clk 00:00:51]

} {

[%emt 00:00:24]

} Qg4 {

[%clk 00:03:21]

} {

[%emt 00:00:33]

} 57. Qf3 {

[%clk 00:01:02]

} {

[%emt 00:00:19]

} Qe6 {

[%clk 00:03:14]

} {

[%emt 00:00:36]

} 58. Qd3 {

[%clk 00:00:43]

} {

[%emt 00:00:48]

} Ra8 {

[%clk 00:03:21]

} {

[%emt 00:00:25]

} 59. Qc2 {

[%clk 00:00:34]

} {

[%emt 00:00:39]

} Ra6 {

[%clk 00:02:51]

} {

[%emt 00:01:00]

} 60. Rc4 {

[%clk 00:00:33]

} {

[%emt 00:00:31]

} Qd5 {

[%clk 00:02:44]

} {

[%emt 00:00:37]

} 61. Rc5 {

[%clk 00:00:34]

} {

[%emt 00:00:30]

} Qf3 {

[%clk 00:02:22]

} {

[%emt 00:00:51]

} 62. Rc3 {

[%clk 00:00:39]

} {

[%emt 00:00:26]

} Qf1 {

[%clk 00:01:40]

} {

[%emt 00:01:12]

} 63. Qg2 {

[%clk 00:00:42]

} {

[%emt 00:00:26]

} Qb1 {

[%clk 00:01:22]

} {

[%emt 00:00:47]

} 64. Rc2 {

[%clk 00:00:33]

} {

[%emt 00:00:41]

} Qxb3 {

[%clk 00:01:34]

} {

[%emt 00:00:18]

} 65. Rb2 {

[%clk 00:00:43]

} {

[%emt 00:00:19]

} Qe6 {

[%clk 00:01:34]

} {

[%emt 00:00:29]

} 66. Qe2 {

[%clk 00:00:35]

} {

[%emt 00:00:38]

} Ra3 {

[%clk 00:01:38]

} {

[%emt 00:00:25]

} 67. Rc2 {

[%clk 00:00:37]

} {

[%emt 00:00:29]

} Qb3 {

[%clk 00:01:23]

} {

[%emt 00:00:46]

} 68. Qf2 {

[%clk 00:00:42]

} {

[%emt 00:00:24]

} Qd5 {

[%clk 00:01:28]

} {

[%emt 00:00:26]

} 69. Rd2 {

[%clk 00:00:40]

} {

[%emt 00:00:32]

} Qe4 {

[%clk 00:01:12]

} {

[%emt 00:00:47]

} 70. Re2 {

[%clk 00:00:42]

} {

[%emt 00:00:28]

} Qf5 {

[%clk 00:01:04]

} {

[%emt 00:00:37]

} 71. Qf1 {

[%clk 00:00:37]

} {

[%emt 00:00:35]

} Qd3 {

[%clk 00:01:03]

} {

[%emt 00:00:32]

} 72. Qg2 {

[%clk 00:00:34]

} {

[%emt 00:00:33]

} Ra1 {

[%clk 00:01:00]

} {

[%emt 00:00:33]

} 73. Rd2 {

[%clk 00:00:31]

} {

[%emt 00:00:33]

} Qb1 {

[%clk 00:01:09]

} {

[%emt 00:00:20]

} 74. Qxc6 {

[%clk 00:00:38]

} {

[%emt 00:00:23]

} Qg1+ {

[%clk 00:01:12]

} {

[%emt 00:00:27]

} 75. Kh3 {

[%clk 00:01:05]

} {

[%emt 00:00:04]

} Ra3 {

[%clk 00:00:49]

} {

[%emt 00:00:53]

} 76. Qg2 {

[%clk 00:01:02]

} {

[%emt 00:00:33]

} Qc1 {

[%clk 00:01:00]

} {

[%emt 00:00:18]

} 77. Qd5 {

[%clk 00:00:48]

} {

[%emt 00:00:44]

} Qc8+ {

[%clk 00:01:02]

} {

[%emt 00:00:28]

} 78. Qd7 {

[%clk 00:00:44]

} {

[%emt 00:00:34]

} Qc4 {

[%clk 00:01:15]

} {

[%emt 00:00:16]

} 79. Qd5 {

[%clk 00:00:34]

} {

[%emt 00:00:42]

} Qxf4 {

[%clk 00:01:29]

} {

[%emt 00:00:15]

} 80. Rg2 {

[%clk 00:00:32]

} {

[%emt 00:00:32]

} h4 {

[%clk 00:01:19]

} {

[%emt 00:00:40]

} 81. Qd2 {

[%clk 00:00:31]

} {

[%emt 00:00:30]

} Rxg3+ {

[%clk 00:01:36]

} {

[%emt 00:00:14]

} 82. Kh2 {

[%clk 00:00:34]

} {

[%emt 00:00:27]

} Rxg2+ {

[%clk 00:01:58]

} {

[%emt 00:00:08]

} 0-1

[Event "Estonian Chess Championship 2022"]
[Site "Tallinn, Paul Keres Chess House, Estonia"]
[Date "2022.12.18"]
[Round "9.1"]
[White "Sirosh, Ilja"]
[Black "Kanep, Meelis"]
[Result "1/2-1/2"]
[TimeControl "90 minutes for first 40 moves and 15 min. for the rest of the game with 30 sec. increment from move 1"]
[WhiteTitle "IM"]
[BlackTitle "GM"]
[WhiteFideId "4500458"]
[BlackFideId "4501047"]
[WhiteElo "2386"]
[BlackElo "2412"]

1. e4 {

[%clk 01:30:56]

} {

[%emt 00:00:03]

} c5 {

[%clk 01:30:44]

} {

[%emt 00:00:17]

} 2. c3 {

[%clk 01:31:19]

} {

[%emt 00:00:07]

} d5 {

[%clk 01:30:01]

} {

[%emt 00:01:13]

} 3. exd5 {

[%clk 01:31:43]

} {

[%emt 00:00:07]

} Nf6 {

[%clk 01:30:22]

} {

[%emt 00:00:08]

} 4. Bb5+ {

[%clk 01:28:32]

} {

[%emt 00:03:41]

} Nbd7 {

[%clk 01:27:12]

} {

[%emt 00:03:40]

} 5. Qb3 {

[%clk 01:21:55]

} {

[%emt 00:07:07]

} g6 {

[%clk 01:25:40]

} {

[%emt 00:02:02]

} 6. Nf3 {

[%clk 01:16:35]

} {

[%emt 00:05:50]

} Bg7 {

[%clk 01:23:48]

} {

[%emt 00:02:22]

} 7. O-O {

[%clk 01:16:45]

} {

[%emt 00:00:21]

} O-O {

[%clk 01:24:02]

} {

[%emt 00:00:16]

} 8. Be2 {

[%clk 00:58:24]

} {

[%emt 00:18:49]

} Nb6 {

[%clk 01:18:54]

} {

[%emt 00:05:40]

} 9. d4 {

[%clk 00:58:26]

} {

[%emt 00:00:27]

} cxd4 {

[%clk 01:16:31]

} {

[%emt 00:02:52]

} 10. Nxd4 {

[%clk 00:58:31]

} {

[%emt 00:00:25]

} Nbxd5 {

[%clk 01:00:44]

} {

[%emt 00:16:18]

} 11. c4 {

[%clk 00:48:23]

} {

[%emt 00:10:37]

} Nb6 {

[%clk 00:50:59]

} {

[%emt 00:10:16]

} 12. Rd1 {

[%clk 00:44:28]

} {

[%emt 00:04:24]

} Qc7 {

[%clk 00:50:59]

} {

[%emt 00:00:30]

} 13. h3 {

[%clk 00:40:19]

} {

[%emt 00:04:39]

} a6 {

[%clk 00:44:02]

} {

[%emt 00:07:28]

} 14. Be3 {

[%clk 00:38:48]

} {

[%emt 00:02:00]

} Nbd7 {

[%clk 00:42:19]

} {

[%emt 00:02:14]

} 15. Nc3 {

[%clk 00:37:45]

} {

[%emt 00:01:33]

} e6 {

[%clk 00:37:37]

} {

[%emt 00:05:12]

} 16. Rac1 {

[%clk 00:31:46]

} {

[%emt 00:06:29]

} b6 {

[%clk 00:33:54]

} {

[%emt 00:04:14]

} 17. Qc2 {

[%clk 00:25:10]

} {

[%emt 00:07:05]

} Bb7 {

[%clk 00:33:16]

} {

[%emt 00:01:09]

} 18. b4 {

[%clk 00:25:30]

} {

[%emt 00:00:10]

} Rac8 {

[%clk 00:29:46]

} {

[%emt 00:04:00]

} 19. Nb3 {

[%clk 00:20:52]

} {

[%emt 00:05:07]

} Rfd8 {

[%clk 00:25:08]

} {

[%emt 00:05:08]

} 20. c5 {

[%clk 00:14:16]

} {

[%emt 00:07:07]

} bxc5 {

[%clk 00:24:47]

} {

[%emt 00:00:50]

} 21. Nxc5 {

[%clk 00:14:34]

} {

[%emt 00:00:12]

} Nxc5 {

[%clk 00:24:47]

} {

[%emt 00:00:30]

} 22. Rxd8+ {

[%clk 00:14:57]

} {

[%emt 00:00:07]

} Rxd8 {

[%clk 00:23:41]

} {

[%emt 00:01:37]

} 23. bxc5 {

[%clk 00:12:28]

} {

[%emt 00:02:58]

} Qc8 {

[%clk 00:16:20]

} {

[%emt 00:07:50]

} 24. Qa4 {

[%clk 00:10:22]

} {

[%emt 00:02:37]

} Qa8 {

[%clk 00:15:03]

} {

[%emt 00:01:47]

} 25. Bf1 {

[%clk 00:08:56]

} {

[%emt 00:01:56]

} a5 {

[%clk 00:12:32]

} {

[%emt 00:03:01]

} 26. Qh4 {

[%clk 00:07:18]

} {

[%emt 00:02:07]

} Nd5 {

[%clk 00:08:15]

} {

[%emt 00:04:47]

} 27. Nxd5 {

[%clk 00:07:30]

} {

[%emt 00:00:19]

} Bxd5 {

[%clk 00:08:39]

} {

[%emt 00:00:06]

} 28. a4 {

[%clk 00:05:51]

} {

[%emt 00:02:09]

} Rb8 {

[%clk 00:06:13]

} {

[%emt 00:02:55]

} 29. Qg3 {

[%clk 00:04:35]

} {

[%emt 00:01:46]

} Bc6 {

[%clk 00:04:54]

} {

[%emt 00:01:49]

} 30. Bb5 {

[%clk 00:04:22]

} {

[%emt 00:00:43]

} e5 {

[%clk 00:04:52]

} {

[%emt 00:00:33]

} 31. Qg4 {

[%clk 00:02:32]

} {

[%emt 00:02:20]

} h5 {

[%clk 00:03:41]

} {

[%emt 00:01:41]

} 32. Bxc6 {

[%clk 00:01:16]

} {

[%emt 00:01:46]

} Qxc6 {

[%clk 00:03:55]

} {

[%emt 00:00:15]

} 33. Qd1 {

[%clk 00:01:31]

} {

[%emt 00:00:15]

} Bf8 {

[%clk 00:03:37]

} {

[%emt 00:00:48]

} 34. Rb1 {

[%clk 00:01:10]

} {

[%emt 00:00:52]

} Rc8 {

[%clk 00:00:33]

} {

[%emt 00:03:34]

} 35. Rb5 {

[%clk 00:01:31]

} {

[%emt 00:00:08]

} Qe4 {

[%clk 00:00:39]

} {

[%emt 00:00:25]

} 36. Rxa5 {

[%clk 00:01:24]

} {

[%emt 00:00:38]

} Qc4 {

[%clk 00:00:41]

} {

[%emt 00:00:28]

} 37. Rb5 {

[%clk 00:00:42]

} {

[%emt 00:01:12]

} Ra8 {

[%clk 00:00:39]

} {

[%emt 00:00:32]

} 38. Qb3 {

[%clk 00:00:38]

} {

[%emt 00:00:34]

} Rxa4 {

[%clk 00:00:55]

} {

[%emt 00:00:14]

} 39. Qxc4 {

[%clk 00:00:58]

} {

[%emt 00:00:09]

} Rxc4 {

[%clk 00:01:23]

} {

[%emt 00:00:01]

} 40. Rb8 {

[%clk 00:15:34]

} {

[%emt 00:00:54]

} Kg7 {

[%clk 00:15:52]

} {

[%emt 00:01:01]

} 41. Rc8 {

[%clk 00:14:33]

} {

[%emt 00:01:31]

} Be7 {

[%clk 00:12:15]

} {

[%emt 00:04:07]

} 42. Kf1 {

[%clk 00:10:24]

} {

[%emt 00:04:39]

} f5 {

[%clk 00:04:15]

} {

[%emt 00:08:31]

} 43. c6 {

[%clk 00:10:01]

} {

[%emt 00:00:52]

} Bc5 {

[%clk 00:03:44]

} {

[%emt 00:01:00]

} 44. Bxc5 {

[%clk 00:06:14]

} {

[%emt 00:04:17]

} 1/2-1/2